[Event "55th Rubinstein Memorial-C 2019"]
[Site "Polanica-Zdroj"]
[Date "2019.08.21"]
[Round "5.32"]
[White "Stoop, Jan"]
[Black "Doskocz, Karol"]
[Result "1/2-1/2"]
[ECO "A04"]
[WhiteElo "1654"]
[BlackElo "1497"]
[Annotator "NA"]
[PlyCount "112"]
[EventDate "2019.08.17"]
[EventType "swiss"]
[EventCountry "POL"]
[SourceTitle "playchess.com"]
[Source "ChessBase"]
[SourceQuality "1"]
[TimeControl "40/5400+30:1800+30"]

1. Nf3 {[%emt 0:00:00]} c5 {[%emt 0:02:54]} 2. c4 {[%emt 0:00:00]} e6 {[%emt 0:01:08]} 3. e4 {[%emt 0:00:46]} a6 {[%emt 0:00:37]} 4. Nc3 {[%emt 0:02:16]} Nc6 {[%emt 0:01:20]} 5. d3 {[%emt 0:03:46]} Qc7 {[%emt 0:01:29]} 6. Be3 {[%emt 0:00:55]} h6 {[%emt 0:01:24]} 7. Rc1 {[%emt 0:00:58]} Nf6 {[%emt 0:03:42]} 8. h3 {[%emt 0:00:36]} Be7 {[%emt 0:02:16]} 9. Be2 {[%emt 0:05:05]} O-O {[%emt 0:03:15]} 10. Qd2 {[%emt 0:01:44]} Kh7 {[%emt 0:04:38]} 11. g4 {[%emt 0:01:16]} Ng8 {[%emt 0:05:12]} 12. g5 {[%emt 0:00:33]} h5 {[%emt 0:02:16]} 13. Rg1 {[%emt 0:03:38]} g6 {[%emt 0:01:27]} 14. Qd1 {[%emt 0:04:04]} Bd8 {[%emt 0:16:29]} 15. Bxc5 {[%emt 0:06:22]} d6 {[%emt 0:01:29]} 16. Be3 {[%emt 0:00:20]} Nge7 {[%emt 0:00:44]} 17. Nh4 {[%emt 0:12:27]} Kg7 {[%emt 0:07:26]} 18. f4 {[%emt 0:03:24]} Qa5 {[%emt 0:09:03]} 19. Qb3 {[%emt 0:14:18]} Qb4 {[%emt 0:05:19]} 20. Qxb4 {[%emt 0:03:43]} Nxb4 {[%emt 0:00:07]} 21. a3 {[%emt 0:00:46]} Nbc6 {[%emt 0:00:30]} 22. b4 {[%emt 0:00:58]} Bd7 {[%emt 0:05:15]} 23. d4 {[%emt 0:11:55]} Na7 {[%emt 0:01:57]} 24. d5 {[%emt 0:04:03]} e5 {[%emt 0:01:51]} 25. fxe5 {[%emt 0:02:52]} dxe5 {[%emt 0:00:26]} 26. Nf3 {[%emt 0:01:10]} Bxh3 {[%emt 0:01:55]} 27. Nxe5 {[%emt 0:00:27]} Bc8 {[%emt 0:02:45]} 28. Bd4 {[%emt 0:00:56]} Kh7 {[%emt 0:03:12]} 29. Rf1 {[%emt 0:01:41]} Ng8 {[%emt 0:03:24]} 30. Rxf7+ {[%emt 0:01:40]} Rxf7 {[%emt 0:00:13]} 31. Nxf7 {[%emt 0:00:05]} Be7 {[%emt 0:01:01]} 32. c5 {[%emt 0:03:07]} Bd7 {[%emt 0:01:17]} 33. e5 {[%emt 0:02:08]} h4 {[%emt 0:02:01]} 34. Kf2 {[%emt 0:00:18]} Be8 {[%emt 0:00:37]} 35. e6 {[%emt 0:00:21]} Bxf7 {[%emt 0:00:22]} 36. exf7 {[%emt 0:00:41]} Rf8 {[%emt 0:00:12]} 37. Kg2 {[%emt 0:01:48]} Rxf7 {[%emt 0:00:12]} 38. Rf1 {[%emt 0:01:10]} Rxf1 {[%emt 0:01:01]} 39. Bxf1 {[%emt 0:00:01]} Bxg5 {[%emt 0:00:41]} 40. c6 {[%emt 0:00:44]} Nxc6 {[%emt 0:00:46]} 41. dxc6 {[%emt 0:30:11]} bxc6 {[%emt 0:30:08]} 42. Bxa6 {[%emt 0:00:21]} Bc1 {[%emt 0:01:11]} 43. a4 {[%emt 0:00:29]} Ne7 {[%emt 0:00:51]} 44. Bb7 {[%emt 0:00:37]} Nf5 {[%emt 0:01:32]} 45. Bf2 {[%emt 0:00:12]} Ba3 {[%emt 0:01:53]} 46. Bc5 {[%emt 0:01:17]} Bb2 {[%emt 0:02:17]} 47. Ne4 {[%emt 0:00:36]} Bd4 {[%emt 0:01:50]} 48. a5 {[%emt 0:00:48]} Be5 {[%emt 0:01:18]} 49. Bxc6 {[%emt 0:01:17]} Kh6 {[%emt 0:00:24]} 50. Be3+ {[%emt 0:00:44]} Nxe3+ {[%emt 0:00:19]} 51. Kf3 {[%emt 0:00:04]} Nc4 {[%emt 0:00:23]} 52. a6 {[%emt 0:00:22]} Bb8 {[%emt 0:00:22]} 53. Bd5 {[%emt 0:00:40]} Ne5+ {[%emt 0:00:49]} 54. Kg2 {[%emt 0:00:15]} g5 {[%emt 0:00:37]} 55. b5 {[%emt 0:00:24]} Nd7 {[%emt 0:00:39]} 56. Bc6 {[%emt 0:00:52]} Nb6 {[%emt 0:00:30]} 1/2-1/2

[Event "55th Rubinstein Memorial-C 2019"]
[Site "Polanica-Zdroj"]
[Date "2019.08.22"]
[Round "6.1"]
[White "Rog, Bartlomiej"]
[Black "Sroka, Janusz"]
[Result "0-1"]
[ECO "C41"]
[WhiteElo "1540"]
[BlackElo "1875"]
[Annotator "NA"]
[PlyCount "84"]
[EventDate "2019.08.17"]
[EventType "swiss"]
[EventCountry "POL"]
[SourceTitle "playchess.com"]
[Source "ChessBase"]
[SourceQuality "1"]
[TimeControl "40/5400+30:1800+30"]

1. e4 {[%emt 0:00:00]} d6 {[%emt 0:00:00]} 2. Nf3 {[%emt 0:00:17]} Nf6 {[%emt 0:00:06]} 3. Nc3 {[%emt 0:00:28]} e5 {[%emt 0:00:30]} 4. d4 {[%emt 0:00:12]} Nbd7 {[%emt 0:00:04]} 5. Bc4 {[%emt 0:00:49]} Be7 {[%emt 0:00:02]} 6. O-O {[%emt 0:01:47]} c6 {[%emt 0:00:13]} 7. a4 {[%emt 0:00:18]} Qc7 {[%emt 0:01:16]} 8. Bxf7+ {[%emt 0:14:38]} Kxf7 {[%emt 0:00:01]} 9. Ng5+ {[%emt 0:00:14]} Kg8 {[%emt 0:05:32]} 10. Ne6 {[%emt 0:00:23]} Qb8 {[%emt 0:00:25]} 11. f4 {[%emt 0:01:28]} Nf8 {[%emt 0:03:12]} 12. Nxf8 {[%emt 0:00:43]} Bxf8 {[%emt 0:18:49]} 13. f5 {[%emt 0:02:45]} Qc7 {[%emt 0:03:56]} 14. dxe5 {[%emt 0:03:05]} dxe5 {[%emt 0:00:40]} 15. g4 {[%emt 0:00:08]} h6 {[%emt 0:02:17]} 16. Kh1 {[%emt 0:02:07]} Bc5 {[%emt 0:03:46]} 17. g5 {[%emt 0:02:22]} hxg5 {[%emt 0:01:35]} 18. Bxg5 {[%emt 0:00:18]} Qf7 {[%emt 0:02:06]} 19. Bxf6 {[%emt 0:08:31]} Qxf6 {[%emt 0:00:12]} 20. Qe2 {[%emt 0:00:21]} b6 {[%emt 0:01:34]} 21. Rf3 {[%emt 0:03:36]} Bd7 {[%emt 0:04:19]} 22. Rd1 {[%emt 0:04:06]} Be8 {[%emt 0:00:33]} 23. b4 {[%emt 0:01:18]} Be7 {[%emt 0:04:10]} 24. Rg3 {[%emt 0:02:00]} Bh5 {[%emt 0:00:45]} 25. Qc4+ {[%emt 0:00:22]} Bf7 {[%emt 0:00:02]} 26. Qe2 {[%emt 0:01:00]} Bxb4 {[%emt 0:00:41]} 27. Rdg1 {[%emt 0:00:52]} Rh7 {[%emt 0:03:03]} 28. Nd1 {[%emt 0:01:28]} Bc5 {[%emt 0:00:13]} 29. Ne3 {[%emt 0:01:35]} Bxe3 {[%emt 0:00:29]} 30. Qxe3 {[%emt 0:01:03]} Qh4 {[%emt 0:01:40]} 31. Qe2 {[%emt 0:02:04]} Rd8 {[%emt 0:01:41]} 32. Qg2 {[%emt 0:05:56]} Qf6 {[%emt 0:01:13]} 33. Qe2 {[%emt 0:01:57]} Kh8 {[%emt 0:01:23]} 34. Qg2 {[%emt 0:00:55]} b5 {[%emt 0:02:51]} 35. axb5 {[%emt 0:01:00]} cxb5 {[%emt 0:00:03]} 36. Rf1 {[%emt 0:00:32]} Qh6 {[%emt 0:05:47]} 37. Rg6 {[%emt 0:01:45]} Qd2 {[%emt 0:00:39]} 38. Rf2 {[%emt 0:01:18]} Qc1+ {[%emt 0:00:19]} 39. Rf1 {[%emt 0:00:42]} Rd1 {[%emt 0:00:17]} 40. Rxd1 {[%emt 0:00:51]} Qxd1+ {[%emt 0:00:03]} 41. Qg1 {[%emt 0:30:16]} Qxg1+ {[%emt 0:30:24]} 42. Rxg1 {[%emt 0:00:12]} Rh4 {[%emt 0:00:17]} 0-1

[Event "55th Rubinstein Memorial-C 2019"]
[Site "Polanica-Zdroj"]
[Date "2019.08.22"]
[Round "6.2"]
[White "Obrochta, Lena"]
[Black "Janzer, Hubert"]
[Result "0-1"]
[ECO "C06"]
[WhiteElo "1870"]
[BlackElo "1803"]
[Annotator "NA"]
[PlyCount "86"]
[EventDate "2019.08.17"]
[EventType "swiss"]
[EventCountry "POL"]
[SourceTitle "playchess.com"]
[Source "ChessBase"]
[SourceQuality "1"]
[TimeControl "40/5400+30:1800+30"]

1. e4 {[%emt 0:00:00]} e6 {[%emt 0:00:00]} 2. d4 {[%emt 0:00:00]} d5 {[%emt 0:00:00]} 3. Nd2 {[%emt 0:00:00]} Nf6 {[%emt 0:00:01]} 4. e5 {[%emt 0:00:00]} Nfd7 {[%emt 0:00:10]} 5. Bd3 {[%emt 0:00:02]} c5 {[%emt 0:00:10]} 6. c3 {[%emt 0:00:18]} Nc6 {[%emt 0:00:07]} 7. Ne2 {[%emt 0:00:15]} cxd4 {[%emt 0:00:26]} 8. cxd4 {[%emt 0:00:08]} f6 {[%emt 0:00:34]} 9. exf6 {[%emt 0:00:37]} Nxf6 {[%emt 0:00:13]} 10. Nf3 {[%emt 0:01:32]} Bd6 {[%emt 0:01:07]} 11. O-O {[%emt 0:04:26]} Qc7 {[%emt 0:00:28]} 12. Ng3 {[%emt 0:03:36]} O-O {[%emt 0:05:09]} 13. Bg5 {[%emt 0:03:43]} h6 {[%emt 0:08:48]} 14. Bxf6 {[%emt 0:05:49]} Rxf6 {[%emt 0:00:27]} 15. Rc1 {[%emt 0:02:24]} Bd7 {[%emt 0:08:49]} 16. Re1 {[%emt 0:01:18]} Raf8 {[%emt 0:05:51]} 17. Bb1 {[%emt 0:09:14]} Be8 {[%emt 0:01:23]} 18. Nh4 {[%emt 0:14:33]} g5 {[%emt 0:14:13]} 19. Nf3 {[%emt 0:07:50]} Bxg3 {[%emt 0:00:49]} 20. hxg3 {[%emt 0:01:51]} Bh5 {[%emt 0:01:19]} 21. Qd3 {[%emt 0:04:38]} Bg6 {[%emt 0:02:18]} 22. Qd2 {[%emt 0:01:36]} Bxb1 {[%emt 0:01:25]} 23. Rxb1 {[%emt 0:00:05]} Qg7 {[%emt 0:01:13]} 24. Ne5 {[%emt 0:04:15]} Rxf2 {[%emt 0:01:49]} 25. Qxf2 {[%emt 0:00:36]} Rxf2 {[%emt 0:00:08]} 26. Kxf2 {[%emt 0:00:04]} Nxd4 {[%emt 0:00:22]} 27. Kg1 {[%emt 0:05:26]} Nf5 {[%emt 0:00:57]} 28. Nf3 {[%emt 0:05:38]} g4 {[%emt 0:01:28]} 29. Ne5 {[%emt 0:07:31]} Nxg3 {[%emt 0:00:52]} 30. Kh2 {[%emt 0:00:56]} Ne4 {[%emt 0:00:19]} 31. Nd3 {[%emt 0:00:21]} g3+ {[%emt 0:00:58]} 32. Kh1 {[%emt 0:01:14]} Qd4 {[%emt 0:00:54]} 33. Red1 {[%emt 0:02:14]} Qf6 {[%emt 0:02:03]} 34. Rdc1 {[%emt 0:02:46]} Qh4+ {[%emt 0:00:09]} 35. Kg1 {[%emt 0:00:05]} Qh2+ {[%emt 0:00:07]} 36. Kf1 {[%emt 0:00:04]} Qh1+ {[%emt 0:00:07]} 37. Ke2 {[%emt 0:00:03]} Qxg2+ {[%emt 0:00:07]} 38. Ke3 {[%emt 0:00:31]} Qd2+ {[%emt 0:00:12]} 39. Kd4 {[%emt 0:01:13]} e5+ {[%emt 0:00:11]} 40. Kxe5 {[%emt 0:00:07]} Qxd3 {[%emt 0:00:16]} 41. Rc8+ {[%emt 0:30:17]} Kg7 {[%emt 0:30:06]} 42. Rbc1 {[%emt 0:00:44]} Nf6 {[%emt 0:00:30]} 43. R1c7+ {[%emt 0:00:51]} Kg6 {[%emt 0:00:09]} 0-1

[Event "55th Rubinstein Memorial-C 2019"]
[Site "Polanica-Zdroj"]
[Date "2019.08.22"]
[Round "6.3"]
[White "Kaliszuk, Kamil"]
[Black "Kroliczek, Gabriela"]
[Result "1/2-1/2"]
[ECO "A04"]
[WhiteElo "1853"]
[BlackElo "1787"]
[Annotator "NA"]
[PlyCount "60"]
[EventDate "2019.08.17"]
[EventType "swiss"]
[EventCountry "POL"]
[SourceTitle "playchess.com"]
[Source "ChessBase"]
[SourceQuality "1"]
[TimeControl "40/5400+30:1800+30"]

1. Nf3 {[%emt 0:00:00]} e6 {[%emt 0:00:31]} 2. c4 {[%emt 0:01:15]} Nf6 {[%emt 0:00:08]} 3. g3 {[%emt 0:00:10]} d5 {[%emt 0:00:26]} 4. b3 {[%emt 0:00:51]} Be7 {[%emt 0:02:29]} 5. Bb2 {[%emt 0:00:52]} O-O {[%emt 0:00:08]} 6. Bg2 {[%emt 0:00:10]} c5 {[%emt 0:02:34]} 7. O-O {[%emt 0:00:19]} Nc6 {[%emt 0:00:30]} 8. e3 {[%emt 0:02:45]} Qb6 {[%emt 0:02:43]} 9. d3 {[%emt 0:19:53]} Rd8 {[%emt 0:01:58]} 10. Qe2 {[%emt 0:00:34]} a6 {[%emt 0:02:12]} 11. Rd1 {[%emt 0:09:54]} Qc7 {[%emt 0:03:21]} 12. Nc3 {[%emt 0:00:56]} d4 {[%emt 0:03:23]} 13. exd4 {[%emt 0:10:19]} cxd4 {[%emt 0:00:07]} 14. Ne4 {[%emt 0:00:19]} e5 {[%emt 0:03:22]} 15. a3 {[%emt 0:16:03]} a5 {[%emt 0:01:22]} 16. Rdb1 {[%emt 0:00:56]} Rb8 {[%emt 0:03:56]} 17. Bc1 {[%emt 0:00:34]} Nxe4 {[%emt 0:04:32]} 18. Qxe4 {[%emt 0:04:30]} f5 {[%emt 0:02:07]} 19. Qe1 {[%emt 0:00:13]} h6 {[%emt 0:00:07]} 20. Bd2 {[%emt 0:05:43]} Bf6 {[%emt 0:02:16]} 21. h4 {[%emt 0:05:03]} Re8 {[%emt 0:03:44]} 22. Nh2 {[%emt 0:01:07]} Bd7 {[%emt 0:03:03]} 23. b4 {[%emt 0:02:04]} b6 {[%emt 0:00:48]} 24. bxa5 {[%emt 0:03:44]} Nxa5 {[%emt 0:02:06]} 25. Bxa5 {[%emt 0:03:33]} bxa5 {[%emt 0:00:07]} 26. Rxb8 {[%emt 0:00:42]} Rxb8 {[%emt 0:00:10]} 27. Bd5+ {[%emt 0:00:09]} Kf8 {[%emt 0:01:32]} 28. Nf3 {[%emt 0:03:43]} Rb3 {[%emt 0:01:19]} 29. Rb1 {[%emt 0:02:58]} Rxb1 {[%emt 0:03:21]} 30. Qxb1 {[%emt 0:00:02]} Qd6 {[%emt 0:00:51]} 1/2-1/2

[Event "55th Rubinstein Memorial-C 2019"]
[Site "Polanica-Zdroj"]
[Date "2019.08.22"]
[Round "6.4"]
[White "Talik, Patryk"]
[Black "Zalega, Maciej"]
[Result "1/2-1/2"]
[ECO "E81"]
[WhiteElo "1975"]
[BlackElo "1429"]
[Annotator "NA"]
[PlyCount "80"]
[EventDate "2019.08.17"]
[EventType "swiss"]
[EventCountry "POL"]
[SourceTitle "playchess.com"]
[Source "ChessBase"]
[SourceQuality "1"]
[TimeControl "40/5400+30:1800+30"]

1. d4 {[%emt 0:16:07]} Nf6 {[%emt 0:00:00]} 2. c4 {[%emt 0:00:07]} g6 {[%emt 0:00:00]} 3. Nc3 {[%emt 0:00:13]} Bg7 {[%emt 0:00:00]} 4. e4 {[%emt 0:00:05]} d6 {[%emt 0:00:00]} 5. f3 {[%emt 0:05:11]} O-O {[%emt 0:00:21]} 6. Be3 {[%emt 0:00:06]} Nbd7 {[%emt 0:01:55]} 7. Qd2 {[%emt 0:01:21]} Re8 {[%emt 0:02:46]} 8. Nge2 {[%emt 0:04:02]} c5 {[%emt 0:02:18]} 9. Rd1 {[%emt 0:00:29]} Nb6 {[%emt 0:19:29]} 10. b3 {[%emt 0:02:07]} cxd4 {[%emt 0:04:09]} 11. Nxd4 {[%emt 0:01:04]} Bd7 {[%emt 0:18:33]} 12. Nde2 {[%emt 0:09:24]} Qc7 {[%emt 0:11:57]} 13. Nf4 {[%emt 0:01:15]} Rac8 {[%emt 0:03:11]} 14. Nce2 {[%emt 0:04:20]} Red8 {[%emt 0:03:36]} 15. g4 {[%emt 0:00:58]} Be8 {[%emt 0:03:36]} 16. g5 {[%emt 0:03:10]} Nfd7 {[%emt 0:00:07]} 17. Bh3 {[%emt 0:00:26]} Ne5 {[%emt 0:00:38]} 18. O-O {[%emt 0:00:28]} Bd7 {[%emt 0:01:18]} 19. Bg2 {[%emt 0:02:31]} Bc6 {[%emt 0:08:46]} 20. Qa5 {[%emt 0:24:03]} Nbd7 {[%emt 0:01:55]} 21. Qa3 {[%emt 0:01:26]} b6 {[%emt 0:04:10]} 22. Nd4 {[%emt 0:05:56]} Nc5 {[%emt 0:01:59]} 23. Nd5 {[%emt 0:03:02]} Qb7 {[%emt 0:03:48]} 24. Bh3 {[%emt 0:01:00]} e6 {[%emt 0:01:43]} 25. Nb4 {[%emt 0:01:05]} Be8 {[%emt 0:00:49]} 26. Qb2 {[%emt 0:03:06]} Nc6 {[%emt 0:01:23]} 27. Nbxc6 {[%emt 0:00:17]} Bxc6 {[%emt 0:00:10]} 28. Qf2 {[%emt 0:00:07]} Qe7 {[%emt 0:01:18]} 29. Nxc6 {[%emt 0:02:37]} Rxc6 {[%emt 0:00:00]} 30. Rd2 {[%emt 0:01:45]} Bc3 {[%emt 0:01:11]} 31. Rc2 {[%emt 0:00:15]} Bb4 {[%emt 0:01:05]} 32. Rd1 {[%emt 0:03:54]} Nb7 {[%emt 0:00:38]} 33. f4 {[%emt 0:00:23]} Bc5 {[%emt 0:00:24]} 34. Bg2 {[%emt 0:00:11]} Rc7 {[%emt 0:01:52]} 35. Bxc5 {[%emt 0:01:24]} dxc5 {[%emt 0:00:55]} 36. Rcd2 {[%emt 0:00:26]} Rcd7 {[%emt 0:00:57]} 37. e5 {[%emt 0:01:26]} Rxd2 {[%emt 0:00:17]} 38. Rxd2 {[%emt 0:00:08]} Rxd2 {[%emt 0:00:03]} 39. Qxd2 {[%emt 0:00:12]} Qd8 {[%emt 0:00:04]} 40. Qxd8+ Nxd8 1/2-1/2

[Event "55th Rubinstein Memorial-C 2019"]
[Site "Polanica-Zdroj"]
[Date "2019.08.22"]
[Round "6.5"]
[White "Gajzner, Ryszard"]
[Black "Majek, Kacper"]
[Result "0-1"]
[ECO "C44"]
[WhiteElo "1740"]
[BlackElo "1984"]
[Annotator "NA"]
[PlyCount "70"]
[EventDate "2019.08.17"]
[EventType "swiss"]
[EventCountry "POL"]
[SourceTitle "playchess.com"]
[Source "ChessBase"]
[SourceQuality "1"]
[TimeControl "40/5400+30:1800+30"]

1. e4 {[%emt 0:00:00]} e5 {[%emt 0:00:00]} 2. Nf3 {[%emt 0:00:00]} Nc6 {[%emt 0:00:00]} 3. d3 Nf6 4. g3 {[%emt 0:00:27]} Bc5 {[%emt 0:00:50]} 5. Bg2 {[%emt 0:00:20]} d6 {[%emt 0:00:39]} 6. O-O {[%emt 0:00:20]} O-O {[%emt 0:00:33]} 7. c3 {[%emt 0:01:55]} Bb6 {[%emt 0:04:35]} 8. Nbd2 {[%emt 0:08:37]} Bg4 {[%emt 0:02:53]} 9. Nc4 {[%emt 0:03:52]} Qd7 {[%emt 0:04:32]} 10. a4 {[%emt 0:03:02]} Be6 {[%emt 0:13:49]} 11. a5 {[%emt 0:12:39]} Bxc4 {[%emt 0:00:08]} 12. axb6 {[%emt 0:00:10]} Be6 {[%emt 0:00:39]} 13. bxc7 {[%emt 0:00:44]} d5 {[%emt 0:00:46]} 14. Ng5 {[%emt 0:14:07]} dxe4 {[%emt 0:01:21]} 15. Nxe6 {[%emt 0:01:54]} Qxe6 {[%emt 0:00:06]} 16. Re1 {[%emt 0:11:31]} Rfc8 {[%emt 0:07:42]} 17. Bxe4 {[%emt 0:02:36]} Nxe4 {[%emt 0:00:17]} 18. Rxe4 {[%emt 0:00:11]} Rxc7 {[%emt 0:00:49]} 19. d4 {[%emt 0:04:37]} Qd5 {[%emt 0:02:34]} 20. Qe1 {[%emt 0:01:18]} Re7 {[%emt 0:00:48]} 21. dxe5 {[%emt 0:02:05]} Rxe5 {[%emt 0:00:24]} 22. Re3 {[%emt 0:12:11]} Rae8 {[%emt 0:03:01]} 23. Qd2 {[%emt 0:01:56]} Qe6 {[%emt 0:12:43]} 24. Ra3 {[%emt 0:04:41]} Qg4 {[%emt 0:04:40]} 25. f3 {[%emt 0:01:46]} Qf5 {[%emt 0:00:26]} 26. c4 {[%emt 0:01:35]} h6 {[%emt 0:05:12]} 27. f4 {[%emt 0:02:17]} Rxe3 {[%emt 0:00:37]} 28. Rxe3 {[%emt 0:00:05]} Rd8 {[%emt 0:00:04]} 29. Qe1 {[%emt 0:01:21]} Qc2 {[%emt 0:02:41]} 30. Rc3 {[%emt 0:01:37]} Qb1 {[%emt 0:02:20]} 31. b3 {[%emt 0:03:09]} Nd4 {[%emt 0:00:29]} 32. Qe7 {[%emt 0:01:55]} Ne6 {[%emt 0:00:13]} 33. Qa3 {[%emt 0:00:44]} Qe4 {[%emt 0:01:55]} 34. Re3 {[%emt 0:01:38]} Rd1+ {[%emt 0:00:06]} 35. Kf2 {[%emt 0:00:08]} Qc2+ {[%emt 0:00:05]} 0-1

[Event "55th Rubinstein Memorial-C 2019"]
[Site "Polanica-Zdroj"]
[Date "2019.08.22"]
[Round "6.6"]
[White "Zgoda, Damian"]
[Black "Szczesniak, Andrzej"]
[Result "1/2-1/2"]
[ECO "D00"]
[WhiteElo "1725"]
[BlackElo "1954"]
[Annotator "NA"]
[PlyCount "92"]
[EventDate "2019.08.17"]
[EventType "swiss"]
[EventCountry "POL"]
[SourceTitle "playchess.com"]
[Source "ChessBase"]
[SourceQuality "1"]
[TimeControl "40/5400+30:1800+30"]

1. d4 {[%emt 0:00:00]} d5 {[%emt 0:00:00]} 2. Bg5 {[%emt 0:00:00]} f6 {[%emt 0:00:04]} 3. Bf4 {[%emt 0:01:51]} Nc6 {[%emt 0:02:11]} 4. Nf3 {[%emt 0:01:16]} Bg4 {[%emt 0:00:21]} 5. Nbd2 {[%emt 0:00:47]} e6 {[%emt 0:00:31]} 6. h3 {[%emt 0:00:45]} Bxf3 {[%emt 0:01:52]} 7. Nxf3 {[%emt 0:03:58]} Bd6 {[%emt 0:00:14]} 8. e3 {[%emt 0:05:21]} a6 {[%emt 0:12:00]} 9. c3 {[%emt 0:07:02]} Nge7 {[%emt 0:03:11]} 10. Be2 {[%emt 0:04:39]} h6 {[%emt 0:08:18]} 11. Qc2 {[%emt 0:09:23]} O-O {[%emt 0:04:41]} 12. Bxd6 {[%emt 0:07:38]} Qxd6 {[%emt 0:00:40]} 13. O-O {[%emt 0:07:51]} e5 {[%emt 0:01:40]} 14. dxe5 {[%emt 0:07:47]} fxe5 {[%emt 0:00:29]} 15. c4 {[%emt 0:00:55]} d4 {[%emt 0:02:33]} 16. Rad1 {[%emt 0:02:36]} Qf6 {[%emt 0:09:12]} 17. Qe4 {[%emt 0:05:14]} Rad8 {[%emt 0:12:59]} 18. Bd3 {[%emt 0:05:16]} Nf5 {[%emt 0:09:34]} 19. exd4 {[%emt 0:07:21]} Nfxd4 {[%emt 0:02:34]} 20. Nh4 {[%emt 0:02:55]} Ne7 {[%emt 0:03:54]} 21. c5 {[%emt 0:04:28]} Ne6 {[%emt 0:01:40]} 22. Bc4 {[%emt 0:01:48]} Rxd1 {[%emt 0:03:07]} 23. Rxd1 {[%emt 0:01:28]} Nc6 {[%emt 0:06:34]} 24. Qg4 {[%emt 0:02:08]} Re8 {[%emt 0:02:37]} 25. Rd7 {[%emt 0:00:36]} Ncd4 {[%emt 0:03:50]} 26. Rxc7 {[%emt 0:01:18]} Kh7 {[%emt 0:01:40]} 27. Qe4+ {[%emt 0:00:27]} Kg8 {[%emt 0:00:21]} 28. Rxb7 {[%emt 0:00:19]} Rf8 {[%emt 0:01:26]} 29. Bd3 {[%emt 0:00:58]} Qxf2+ {[%emt 0:00:46]} 30. Kh1 {[%emt 0:00:18]} Ng5 {[%emt 0:00:11]} 31. Rxg7+ {[%emt 0:02:02]} Kxg7 {[%emt 0:01:07]} 32. Qg6+ {[%emt 0:00:11]} Kh8 {[%emt 0:00:36]} 33. Qxh6+ {[%emt 0:00:04]} Kg8 {[%emt 0:00:49]} 34. Qxg5+ {[%emt 0:00:14]} Kf7 {[%emt 0:01:00]} 35. Bc4+ {[%emt 0:01:00]} Ke8 {[%emt 0:01:55]} 36. Qxe5+ {[%emt 0:00:20]} Kd7 {[%emt 0:01:19]} 37. Qd6+ {[%emt 0:00:43]} Ke8 {[%emt 0:00:22]} 38. Qb8+ {[%emt 0:00:17]} Kd7 {[%emt 0:00:26]} 39. Qb7+ {[%emt 0:00:19]} Kd8 {[%emt 0:00:04]} 40. Qb8+ {[%emt 0:03:47]} Kd7 {[%emt 0:01:17]} 41. Qd6+ {[%emt 0:30:20]} Ke8 {[%emt 0:30:14]} 42. Ng6 {[%emt 0:00:58]} Qe1+ {[%emt 0:00:42]} 43. Kh2 {[%emt 0:00:19]} Nf3+ {[%emt 0:00:15]} 44. gxf3 {[%emt 0:00:53]} Qf2+ {[%emt 0:00:08]} 45. Kh1 {[%emt 0:00:05]} Qxf3+ {[%emt 0:00:11]} 46. Kh2 {[%emt 0:00:11]} Qf2+ {[%emt 0:00:13] Be6 Qe3} 1/2-1/2

[Event "55th Rubinstein Memorial-C 2019"]
[Site "Polanica-Zdroj"]
[Date "2019.08.22"]
[Round "6.7"]
[White "Musial, Igor"]
[Black "Kardys, Zbigniew"]
[Result "1/2-1/2"]
[ECO "B81"]
[WhiteElo "1717"]
[BlackElo "1949"]
[Annotator "NA"]
[PlyCount "93"]
[EventDate "2019.08.17"]
[EventType "swiss"]
[EventCountry "POL"]
[SourceTitle "playchess.com"]
[Source "ChessBase"]
[SourceQuality "1"]
[TimeControl "40/5400+30:1800+30"]

1. e4 {[%emt 0:00:00]} c5 {[%emt 0:00:00]} 2. Nf3 {[%emt 0:00:00]} e6 {[%emt 0:00:15]} 3. d4 {[%emt 0:00:14]} cxd4 {[%emt 0:00:02]} 4. Nxd4 {[%emt 0:00:15]} Nf6 {[%emt 0:00:32]} 5. Nc3 {[%emt 0:00:32]} d6 {[%emt 0:00:39]} 6. g4 {[%emt 0:00:12]} h6 {[%emt 0:00:55]} 7. h4 {[%emt 0:01:53]} Be7 {[%emt 0:00:18]} 8. Rg1 {[%emt 0:03:16]} Nc6 {[%emt 0:10:41]} 9. g5 {[%emt 0:05:45]} hxg5 {[%emt 0:01:11]} 10. hxg5 {[%emt 0:00:17]} Nd7 {[%emt 0:09:30]} 11. Be3 {[%emt 0:03:50]} Nde5 {[%emt 0:13:35]} 12. f4 {[%emt 0:18:58]} Ng6 {[%emt 0:03:35]} 13. Nb3 {[%emt 0:07:02]} a6 {[%emt 0:15:13]} 14. Bd3 {[%emt 0:15:08]} Bd7 {[%emt 0:13:10]} 15. Qf3 {[%emt 0:03:27]} Qc7 {[%emt 0:06:20]} 16. O-O-O {[%emt 0:02:53]} O-O-O {[%emt 0:01:48]} 17. Qf2 {[%emt 0:01:41]} Rde8 {[%emt 0:03:09]} 18. Bb6 {[%emt 0:06:08]} Qb8 {[%emt 0:01:28]} 19. Na5 {[%emt 0:01:53]} Nxa5 {[%emt 0:02:39]} 20. Bxa5 {[%emt 0:00:17]} Bd8 {[%emt 0:00:31]} 21. Bxd8 {[%emt 0:02:30]} Rxd8 {[%emt 0:00:03]} 22. e5 {[%emt 0:04:49]} dxe5 {[%emt 0:01:17]} 23. Bxg6 {[%emt 0:01:20]} fxg6 {[%emt 0:00:03]} 24. Qc5+ {[%emt 0:00:57]} Qc7 {[%emt 0:02:35]} 25. Qxe5 {[%emt 0:00:37]} Rhf8 {[%emt 0:02:07]} 26. Ne4 {[%emt 0:05:42]} Qxe5 {[%emt 0:00:03]} 27. fxe5 {[%emt 0:00:08]} Kc7 {[%emt 0:00:43]} 28. Rgf1 {[%emt 0:03:52]} Bc6 {[%emt 0:01:38]} 29. Nd6 {[%emt 0:01:21]} Bg2 {[%emt 0:01:43]} 30. Rxf8 {[%emt 0:00:51]} Rxf8 {[%emt 0:00:01]} 31. Rg1 Rf2 {[%emt 0:02:01]} 32. Re1 {[%emt 0:07:47]} Bh3 {[%emt 0:01:23]} 33. Rh1 {[%emt 0:00:27]} Bf5 {[%emt 0:02:45]} 34. Nxf5 {[%emt 0:01:23]} Rxf5 {[%emt 0:00:28]} 35. Rh7 {[%emt 0:00:08]} Rxg5 {[%emt 0:00:23]} 36. Rxg7+ {[%emt 0:00:06]} Kc6 {[%emt 0:00:07]} 37. c4 {[%emt 0:00:37]} b6 {[%emt 0:00:42]} 38. Kc2 {[%emt 0:00:43]} Rxe5 {[%emt 0:01:46]} 39. Rxg6 {[%emt 0:00:06]} Kc5 {[%emt 0:00:05]} 40. Rg4 {[%emt 0:00:44]} Re2+ {[%emt 0:01:09]} 41. Kc3 {[%emt 0:30:17]} a5 {[%emt 0:30:16]} 42. a3 {[%emt 0:02:09]} a4 {[%emt 0:00:28]} 43. Rg5+ {[%emt 0:00:13]} e5 {[%emt 0:00:16]} 44. Kd3 {[%emt 0:00:54]} Re1 {[%emt 0:00:53]} 45. Rh5 {[%emt 0:00:10]} Rd1+ {[%emt 0:02:01]} 46. Kc2 {[%emt 0:00:23]} Re1 {[%emt 0:00:22]} 47. Kd3 {[%emt 0:00:05]} 1/2-1/2